bitfinex/quotes_SOLUSD_20250625
["timestamp","ask_amount","ask_price","bid_price","bid_amount"]
[1750891236056,36.93040835,143.41,143.4,0.02]
[1750891237165,41.81151845,143.41,143.4,0.02]
[1750891237848,36.93040835,143.41,143.4,0.02]
[1750891238371,10.93040835,143.41,143.4,0.02]
[1750891239072,5.72170381,143.41,143.4,0.02]
[1750891239256,5.72170381,143.42,143.4,0.02]
[1750891239459,10.93290257,143.42,143.4,0.02]
[1750891239662,5.21119876,143.42,143.4,0.02]
[1750891239856,5.72170381,143.43,143.4,0.02]
[1750891240676,16.64189992,143.44,143.4,0.02]
[1750891240881,5.21093435,143.43,143.4,0.02]
[1750891241079,16.64189992,143.44,143.4,0.02]
[1750891241263,5.2111053,143.43,143.4,6.99350069]
[1750891241464,5.72170381,143.44,143.4,6.99350069]
[1750891241663,5.2110366,143.43,143.4,6.99350069]
[1750891241865,5.72170381,143.44,143.4,6.99350069]
[1750891242069,5.21103542,143.43,143.4,6.99350069]
[1750891242371,10.60179736,143.44,143.4,6.99350069]
[1750891242675,5.72170381,143.41,143.4,0.02]
[1750891249385,10.93689042,143.42,143.4,0.02]
[1750891249587,10.60252144,143.42,143.4,0.02]
[1750891250175,5.72170381,143.41,143.4,0.02]
[1750891250870,4.88081763,143.42,143.4,0.02]
[1750891251076,185.53766618,143.41,143.4,0.02]
[1750891251890,190.41877628,143.41,143.4,0.02]
[1750891253174,196.45877628,143.41,143.4,0.02]
[1750891258360,49.07443785,143.41,143.4,0.02]
[1750891258566,48.28526099,143.41,143.4,0.02]
[1750891258772,54.79614166,143.41,143.4,0.02]
[1750891259185,48.28526099,143.41,143.4,0.02]
[1750891261489,54.79614166,143.41,143.4,0.02]
[1750891263078,48.28526099,143.41,143.4,0.02]
[1750891263396,0.42648471,143.4,143.38,0.02]
[1750891263585,11.22198932,143.39,143.38,0.02]
[1750891263795,11.22198932,143.39,143.34,17.723]
[1750891263796,26.0,143.36,143.34,17.723]
[1750891264095,11.68244708,143.35,143.34,17.723]
[1750891264401,17.40415089,143.35,143.34,17.723]
[1750891264607,11.68244708,143.35,143.34,17.723]
[1750891264783,17.40415089,143.35,143.34,13.223]
[1750891265301,22.28730401,143.35,143.34,13.223]
[1750891265804,17.07134164,143.35,143.34,13.223]
[1750891267099,16.64485693,143.35,143.34,13.223]
[1750891268109,11.76170381,143.35,143.34,13.223]
[1750891272694,5.72170381,143.35,143.34,13.223]
[1750891275703,10.60485693,143.35,143.34,13.223]
[1750891284111,36.60485693,143.35,143.34,13.223]
[1750891286197,37.03134164,143.35,143.34,13.223]
[1750891286399,174.6,143.34,143.33,0.9025285]
[1750891286613,180.32170381,143.34,143.33,0.9025285]
[1750891287004,185.51552174,143.34,143.33,0.9025285]
[1750891287207,191.2191633,143.34,143.33,0.9025285]
[1750891287404,185.51552174,143.34,143.33,0.9025285]
[1750891288299,190.39901553,143.34,143.33,0.9025285]
[1750891289310,5.72170381,143.3,143.29,1.051]
[1750891291024,5.72170381,143.3,143.29,2.9772466]
[1750891293131,10.60656075,143.3,143.29,2.9772466]
[1750891295199,10.60656075,143.3,143.29,0.4772466]
[1750891296312,148.6,143.32,143.29,0.4772466]
[1750891296530,5.72170381,143.31,143.29,0.4772466]
[1750891297018,5.72170381,143.3,143.29,0.4772466]
[1750891299627,10.60656075,143.3,143.29,0.4772466]
[1750891299817,5.72170381,143.3,143.29,0.4772466]
[1750891300630,10.60656075,143.3,143.29,0.4772466]
[1750891302436,5.72170381,143.3,143.29,0.4772466]
[1750891303632,5.72170381,143.31,143.29,0.4772466]
[1750891305429,148.6,143.32,143.29,7.45603653]
[1750891308034,31.72170381,143.33,143.29,7.45603653]
[1750891308245,16.80523918,143.34,143.29,13.17774034]
[1750891309126,5.72170381,143.33,143.29,7.45603653]
[1750891310539,5.72170381,143.33,143.29,13.17774034]
[1750891311118,11.40836593,143.34,143.3,18.64964886]
[1750891311443,11.92170381,143.34,143.3,24.37135267]
[1750891311685,5.72170381,143.34,143.3,24.37135267]
[1750891311820,5.72170381,143.34,143.3,18.64964886]
[1750891312135,180.32170381,143.35,143.3,24.37135267]
[1750891313140,5.72170381,143.34,143.3,25.62767294]
[1750891313348,5.72170381,143.34,143.3,31.34937675]
[1750891314040,5.72170381,143.34,143.3,25.62767294]
[1750891314352,5.72170381,143.31,143.29,0.4772466]
[1750891315636,5.72170381,143.3,143.29,0.4772466]
[1750891318370,10.60656075,143.3,143.29,0.4772466]
[1750891319656,16.24271411,143.3,143.29,0.4772466]
[1750891320556,15.8162294,143.3,143.29,0.4772466]
[1750891321755,10.60656075,143.3,143.29,0.4772466]
[1750891321959,15.8162294,143.3,143.29,0.4772466]
[1750891322136,10.60656075,143.3,143.29,0.4772466]
[1750891322454,5.72170381,143.3,143.29,0.4772466]
[1750891329065,37.1043729,143.32,143.29,0.4772466]
[1750891329362,5.72170381,143.3,143.29,0.4772466]
[1750891330535,4.88461627,143.31,143.29,0.4772466]
[1750891330740,5.72170381,143.3,143.29,0.4772466]
[1750891331856,10.93801621,143.3,143.29,0.4772466]
[1750891333642,15.82287315,143.3,143.29,0.4772466]
[1750891334370,5.2163124,143.3,143.29,0.4772466]
[1750891334552,10.93801621,143.31,143.29,0.4772466]
[1750891334754,5.72170381,143.3,143.29,0.4772466]
[1750891335137,10.93836838,143.3,143.29,0.4772466]
[1750891336060,15.82322532,143.3,143.29,0.4772466]
[1750891340246,10.60656075,143.3,143.29,0.4772466]
[1750891340445,15.82322532,143.3,143.29,0.4772466]
[1750891341470,10.93836838,143.3,143.29,0.4772466]
[1750891341869,5.21666457,143.3,143.29,0.4772466]
[1750891342172,5.72170381,143.3,143.29,0.4772466]
[1750891342773,15.822153,143.3,143.29,0.4772466]
[1750891344251,10.60656075,143.3,143.29,0.4772466]
[1750891344868,15.82190793,143.3,143.29,0.4772466]
[1750891350752,10.93705099,143.3,143.29,0.4772466]
[1750891351686,15.82190793,143.3,143.29,0.4772466]
[1750891353380,10.93705099,143.3,143.29,0.4772466]
[1750891353877,5.21534718,143.3,143.29,0.4772466]
[1750891354087,10.93820523,143.3,143.29,0.4772466]
[1750891357160,15.82306217,143.3,143.29,0.4772466]
[1750891365997,5.21650142,143.3,143.29,31.82745334]
[1750891366186,5.22128731,143.33,143.29,31.82745334]
[1750891366378,5.22128731,143.32,143.29,31.82745334]
[1750891366573,5.72170381,143.33,143.29,31.82745334]
[1750891366773,5.22128373,143.32,143.29,31.82745334]
[1750891367094,5.72170381,143.3,143.29,0.4772466]
[1750891367396,10.94350658,143.3,143.29,0.4772466]
[1750891367606,11.36999129,143.3,143.29,0.4772466]
[1750891368093,166.48917527,143.3,143.29,0.4772466]
[1750891369097,171.37403221,143.3,143.29,0.4772466]
[1750891369296,177.57403221,143.3,143.29,0.4772466]
[1750891371094,171.05484823,143.3,143.29,0.4772466]
[1750891372999,22.45484823,143.3,143.29,0.4772466]
[1750891373200,28.97403221,143.3,143.29,0.4772466]
[1750891377882,34.69573602,143.3,143.29,0.4772466]
[1750891378081,26.0,143.27,143.23,0.02]
[1750891378398,5.72170381,143.24,143.23,0.02]
[1750891378604,10.94350658,143.24,143.23,0.02]
[1750891379106,5.72170381,143.24,143.23,0.02]
[1750891379605,15.83040967,143.24,143.23,0.02]
[1750891379791,10.6086069,143.24,143.23,0.02]
[1750891379977,15.83040967,143.24,143.23,0.02]
[1750891380183,10.6086069,143.24,143.23,0.02]
[1750891380404,15.83040967,143.24,143.23,0.02]
[1750891380606,10.6086069,143.24,143.23,0.02]
[1750891380790,15.83040967,143.24,143.23,0.02]
[1750891380985,10.6086069,143.24,143.23,0.02]
[1750891381299,15.83040967,143.24,143.23,0.02]
[1750891381506,10.6086069,143.24,143.23,0.02]
[1750891382513,15.83040967,143.24,143.23,0.02]
[1750891382687,10.6086069,143.24,143.23,0.02]
[1750891384807,5.72170381,143.24,143.23,0.02]
[1750891385709,4.88668184,143.25,143.23,0.02]
[1750891385890,5.72170381,143.25,143.23,0.02]
[1750891386292,153.48635773,143.26,143.23,0.02]
[1750891386491,148.6,143.26,143.23,18.66964886]
[1750891387894,11.86170381,143.28,143.23,31.37293752]
[1750891388101,5.72170381,143.28,143.23,31.37293752]
[1750891388304,5.72170381,143.29,143.25,18.64964886]
[1750891389202,5.72170381,143.29,143.23,25.65123371]
[1750891389528,5.72170381,143.29,143.25,18.64964886]
[1750891390186,5.72170381,143.28,143.25,18.64964886]
[1750891391414,37.02500469,143.3,143.25,25.63037216]
[1750891391613,5.72170381,143.29,143.25,25.63037216]
[1750891391796,5.72170381,143.28,143.25,18.64964886]
[1750891392298,37.02500469,143.3,143.26,1.5315]
[1750891392299,5.72170381,143.29,143.26,1.5315]
[1750891393021,5.72170381,143.27,143.25,18.64964886]
[1750891395204,5.72170381,143.27,143.23,7.00160849]
[1750891395404,5.72170381,143.27,143.24,18.64964886]
[1750891395606,4.88554759,143.28,143.23,7.00160849]
[1750891395607,5.72170381,143.25,143.23,0.02]
[1750891395923,5.72170381,143.24,143.23,0.02]
[1750891396099,5.72170381,143.25,143.23,0.02]
[1750891396299,5.72170381,143.24,143.23,0.02]
[1750891396701,5.72170381,143.25,143.23,0.02]
[1750891396896,10.60826937,143.25,143.23,0.02]
[1750891397224,5.72170381,143.25,143.23,0.02]
[1750891398723,10.60827219,143.25,143.23,0.02]
[1750891398901,5.72170381,143.24,143.23,0.02]
[1750891403028,10.0909256,143.26,143.23,0.02]
[1750891403324,5.72170381,143.24,143.23,0.02]
[1750891404735,4.88661293,143.25,143.23,0.02]
[1750891404911,5.72170381,143.24,143.23,0.02]
[1750891410729,5.72170381,143.25,143.23,0.02]
[1750891414234,3.67359923,143.25,143.23,0.02]
[1750891415427,5.20451306,143.25,143.23,0.02]
[1750891415743,8.87811229,143.25,143.23,0.02]
[1750891417013,3.67359923,143.25,143.23,0.02]
[1750891417213,8.87811229,143.25,143.23,0.02]
[1750891418122,13.7646814,143.25,143.23,0.02]
[1750891418420,8.56016834,143.25,143.23,0.02]
[1750891418609,13.7646814,143.25,143.23,0.02]
[1750891418808,8.56016834,143.25,143.23,0.02]
[1750891419009,13.7646814,143.25,143.23,0.02]
[1750891419210,8.56016834,143.25,143.23,0.02]
[1750891419510,13.7646814,143.25,143.23,0.02]
[1750891419719,8.56016834,143.25,143.23,0.02]
[1750891419919,13.7646814,143.25,143.23,0.02]
[1750891420120,3.67359923,143.25,143.23,0.02]
[1750891420317,8.87811229,143.25,143.23,0.02]
[1750891421953,13.76474679,143.25,143.23,0.02]
[1750891422156,8.56023373,143.25,143.23,0.02]
[1750891422444,13.76474679,143.25,143.23,0.02]
[1750891422617,4.8866345,143.25,143.23,0.02]
[1750891422815,13.76474679,143.25,143.23,0.02]
[1750891423333,8.56023373,143.25,143.23,0.02]
[1750891423542,148.6,143.27,143.24,18.64964886]
[1750891423727,3.67359923,143.28,143.24,18.64964886]
[1750891424256,3.67359923,143.28,143.24,25.6308055]
[1750891424427,30.88533852,143.29,143.24,25.6308055]
[1750891424620,3.67359923,143.28,143.24,25.6308055]
[1750891425432,5.21236833,143.29,143.24,25.6308055]
[1750891425734,3.67359923,143.29,143.24,29.30440473]
[1750891425939,3.67359923,143.28,143.24,25.6308055]
[1750891427038,3.67359923,143.27,143.24,25.6308055]
[1750891427740,8.55966568,143.27,143.24,18.64964886]
[1750891427925,3.67359923,143.26,143.24,18.64964886]
[1750891428129,8.55966568,143.27,143.24,18.64964886]
[1750891428631,142.48596756,143.3,143.24,25.63064444]
[1750891428834,3.67359923,143.28,143.24,22.32324809]
[1750891429035,3.67359923,143.28,143.24,25.63087478]
[1750891429722,4.88519785,143.29,143.24,25.63087478]
[1750891429921,3.67359923,143.28,143.24,25.63087478]
[1750891430453,8.55926745,143.28,143.24,25.63087478]
[1750891433443,8.55926745,143.28,143.24,29.30447401]
[1750891434253,4.88519785,143.29,143.24,29.30447401]
[1750891434456,3.67359923,143.28,143.24,29.30447401]
[1750891435354,3.67359923,143.28,143.24,25.63087478]
[1750891442670,8.8854222,143.29,143.24,29.30447401]
[1750891443559,5.21182297,143.29,143.24,29.30447401]
[1750891443860,8.8854222,143.29,143.24,29.30447401]
[1750891445142,3.67359923,143.28,143.24,25.63087478]
[1750891447569,3.67359923,143.28,143.24,29.30447401]
[1750891450378,8.8854222,143.29,143.24,29.30447401]
[1750891452065,13.77066487,143.29,143.24,29.30447401]
[1750891452368,10.09706564,143.29,143.24,29.30447401]
[1750891452570,3.67359923,143.28,143.24,25.63087478]
[1750891453453,8.8854222,143.29,143.24,29.30447401]
[1750891453658,3.67359923,143.28,143.24,29.30447401]
[1750891454673,146.15956679,143.3,143.26,5.32229923]
[1750891455584,146.15956679,143.3,143.27,6.97982829]
[1750891455783,32.1,143.31,143.27,6.97982829]
[1750891455965,142.52596756,143.34,143.28,22.32324809]
[1750891456147,8.886481,143.33,143.28,22.32324809]
[1750891456344,3.67359923,143.32,143.28,22.32324809]
[1750891457058,3.67359923,143.32,143.29,6.97885407]
[1750891457266,3.67359923,143.32,143.28,29.30238918]
[1750891458554,8.5578024,143.32,143.28,29.30238918]
[1750891460047,8.5578024,143.32,143.28,18.64964886]
[1750891460248,3.67359923,143.31,143.28,18.64964886]
[1750891461279,4.88420317,143.32,143.28,18.64964886]
[1750891461477,8.5578024,143.32,143.28,25.62896296]
[1750891461809,8.5578024,143.32,143.28,18.64964886]
[1750891464183,4.88420317,143.32,143.28,18.64964886]
[1750891464481,3.67359923,143.31,143.28,18.64964886]
[1750891468085,3.67359923,143.31,143.28,25.62897346]
[1750891468786,3.67359923,143.32,143.28,25.62897346]
[1750891469381,8.55777912,143.32,143.28,25.62897346]
[1750891470287,3.67359923,143.32,143.28,25.62897346]
[1750891471370,5.21163203,143.33,143.28,29.30257269]
[1750891471574,8.59722334,143.34,143.3,18.64964886]
[1750891471790,3.71359923,143.34,143.3,22.32324809]
[1750891472080,8.59717203,143.34,143.3,18.64964886]
[1750891472265,3.67359923,143.32,143.28,18.64964886]
[1750891472463,3.67359923,143.31,143.28,18.64964886]
[1750891473285,3.67359923,143.32,143.28,25.62876735]
[1750891473483,10.09415151,143.33,143.28,25.62876735]
[1750891473484,10.09415151,143.33,143.28,29.30236658]
[1750891473791,5.21011633,143.33,143.28,29.30236658]
[1750891473969,8.88371556,143.33,143.28,29.30236658]
[1750891474169,13.76761627,143.33,143.28,29.30236658]
[1750891476908,3.67359923,143.32,143.28,29.30236658]
[1750891477083,8.55778469,143.32,143.28,29.30236658]
[1750891477285,4.88418546,143.32,143.28,25.62876735]
[1750891477509,3.67359923,143.32,143.28,25.62876735]
[1750891479699,10.0941246,143.33,143.28,25.62876735]
[1750891479901,3.67359923,143.32,143.28,25.62876735]
[1750891482497,8.55783954,143.32,143.28,25.62876735]
[1750891482995,4.88424031,143.32,143.28,25.62876735]
[1750891483198,8.55783954,143.32,143.28,25.62876735]
[1750891483683,3.67359923,143.32,143.28,25.62876735]
[1750891489291,3.67359923,143.31,143.28,18.64964886]
[1750891490399,3.67359923,143.31,143.28,25.62897567]
[1750891495288,3.67359923,143.32,143.28,25.62897567]
[1750891496286,4.92349379,143.34,143.28,25.62897567]
[1750891496287,3.67359923,143.31,143.28,25.62897567]
[1750891497314,3.67359923,143.31,143.29,18.64964886]
[1750891498687,3.67359923,143.32,143.29,18.64964886]
[1750891498912,3.67359923,143.32,143.29,25.62843182]
[1750891503214,3.67359923,143.32,143.29,18.64964886]
[1750891503418,8.55783369,143.32,143.29,18.64964886]
[1750891503595,3.67359923,143.31,143.29,18.64964886]
[1750891503797,8.89902562,143.32,143.29,25.62845161]
[1750891504008,3.67359923,143.32,143.29,25.62845161]
[1750891508619,3.67359923,143.33,143.29,25.62845161]
[1750891508999,3.71359923,143.34,143.3,28.42]
[1750891509200,0.04,143.34,143.31,18.64964886]
[1750891509516,0.04,143.34,143.31,23.87184809]
[1750891510511,0.04,143.34,143.33,18.64964886]
[1750891511921,26.0,143.33,143.24,1.5443]
[1750891512119,3.67359923,143.28,143.24,1.5443]
[1750891512508,3.67359923,143.28,143.25,18.64964886]
[1750891512923,3.67359923,143.28,143.25,25.63025065]
[1750891516404,3.67359923,143.29,143.25,25.63025065]
[1750891517030,5.21897321,143.31,143.25,25.63025065]
[1750891517235,3.67359923,143.29,143.25,25.63025065]
[1750891517427,3.67359923,143.29,143.25,43.08225763]
[1750891517625,3.67359923,143.28,143.25,43.08225763]
[1750891517819,3.67359923,143.28,143.25,25.63025065]
[1750891518247,4.88454439,143.31,143.25,25.63025065]
[1750891518448,3.67359923,143.28,143.25,25.63025065]
[1750891524146,3.67359923,143.29,143.25,25.63025065]
[1750891524650,3.67359923,143.29,143.25,29.30384988]
[1750891524844,6.53172103,143.32,143.25,29.30384988]
[1750891524845,5.2173519,143.31,143.25,29.30384988]
[1750891525022,3.67359923,143.29,143.25,29.30384988]
[1750891525524,3.67359923,143.3,143.25,29.30384988]
[1750891525725,3.67359923,143.3,143.26,32.09359923]
[1750891526244,3.67359923,143.3,143.28,18.64964886]
[1750891528335,3.67359923,143.3,143.28,25.62874144]
[1750891533052,3.67359923,143.29,143.28,18.64964886]
[1750891533350,5.21715433,143.31,143.28,18.64964886]
[1750891533528,3.67359923,143.29,143.28,18.64964886]
[1750891534251,5.21715433,143.31,143.28,18.64964886]
[1750891534422,3.67359923,143.29,143.28,18.64964886]
[1750891536534,3.67359923,143.3,143.28,18.64964886]
[1750891537248,3.67359923,143.29,143.28,18.64964886]
[1750891538763,3.67359923,143.3,143.28,18.64964886]
[1750891539259,3.67359923,143.29,143.24,47.06964886]
[1750891539464,3.67359923,143.27,143.24,47.06964886]
[1750891539974,3.67359923,143.26,143.24,18.64964886]
[1750891540343,3.67359923,143.25,143.23,0.02]
[1750891541045,3.67359923,143.24,143.23,0.02]
[1750891541250,8.56050232,143.24,143.23,0.02]
[1750891547080,3.67359923,143.24,143.23,0.02]
[1750891553494,4.88622085,143.26,143.23,0.02]
[1750891553680,3.67359923,143.24,143.23,0.02]
[1750891554071,3.67359923,143.25,143.23,0.02]
[1750891555689,32.08,143.27,143.23,0.02]
[1750891556009,3.67359923,143.26,143.23,0.02]
[1750891556800,3.67359923,143.26,143.23,18.66964886]
[1750891558081,3.67359923,143.26,143.23,25.6512909]
[1750891558287,10.96525509,143.29,143.23,25.6512909]
[1750891558288,3.67359923,143.27,143.23,29.32489013]
[1750891561990,3.67359923,143.27,143.23,25.6512909]
[1750891564001,10.96522539,143.29,143.23,25.6512909]
[1750891564210,3.67359923,143.27,143.23,25.6512909]
[1750891564710,3.67359923,143.27,143.23,54.0712909]
[1750891568316,3.67359923,143.26,143.23,54.0712909]
[1750891568811,4.88522539,143.29,143.23,54.0712909]
[1750891569115,3.67359923,143.26,143.23,54.0712909]
[1750891570513,3.67359923,143.27,143.23,54.0712909]
[1750891571506,3.67359923,143.26,143.23,47.08964886]
[1750891571714,3.67359923,143.24,143.23,0.02]
[1750891574816,8.56050232,143.24,143.23,0.02]
[1750891575113,34.56050232,143.24,143.23,0.02]
[1750891575321,36.09520595,143.24,143.23,0.02]
[1750891575622,39.76880518,143.24,143.23,0.02]
[1750891576312,41.83817679,143.24,143.23,0.02]
[1750891576819,36.62987393,143.24,143.23,0.02]
[1750891579127,31.74297084,143.24,143.23,0.02]
[1750891579619,36.62987393,143.24,143.23,0.02]
[1750891579836,31.74297084,143.24,143.23,0.02]
[1750891580714,36.62987393,143.24,143.23,0.02]
[1750891580897,31.74297084,143.24,143.23,0.02]
[1750891581394,142.48596756,143.31,143.24,18.64964886]
[1750891581602,5.74297084,143.28,143.24,24.3926197]
[1750891581907,5.74297084,143.27,143.24,18.64964886]
[1750891582523,36.94497845,143.3,143.23,0.02]
[1750891582524,5.74297084,143.26,143.23,0.02]
[1750891583127,5.74297084,143.25,143.23,0.02]
[1750891592234,4.88601305,143.27,143.23,0.02]
[1750891592439,5.74297084,143.25,143.23,0.02]
[1750891595134,10.62924107,143.26,143.23,0.02]
[1750891595329,5.74297084,143.26,143.23,0.02]
[1750891601145,4.88602143,143.27,143.23,0.02]
[1750891601315,5.74297084,143.26,143.23,0.02]
[1750891604249,3.67316185,143.26,143.23,0.02]
[1750891607159,5.21004683,143.28,143.23,0.02]
[1750891607160,10.09573569,143.28,143.23,0.02]
[1750891607331,3.67316185,143.27,143.23,0.02]
[1750891609452,10.09558747,143.28,143.23,0.02]
[1750891609756,3.67316185,143.27,143.23,0.02]
[1750891613579,147.3713371,143.29,143.23,3.69316185]
[1750891613861,3.67316185,143.27,143.23,0.02]
[1750891614948,147.3713371,143.29,143.23,0.02]
[1750891615139,3.67316185,143.27,143.23,0.02]
[1750891617159,3.67316185,143.25,143.23,0.02]
[1750891617363,3.67316185,143.24,143.23,0.02]
[1750891617950,3.67316185,143.24,143.23,18.66964886]
[1750891623070,3.67316185,143.25,143.23,18.66964886]
[1750891624170,3.67316185,143.24,143.23,0.02]
[1750891628469,4.88661628,143.25,143.23,0.02]
[1750891628667,3.67316185,143.25,143.23,0.02]
[1750891628968,4.88622085,143.26,143.23,0.02]
[1750891629172,3.67316185,143.25,143.23,0.02]
[1750891632052,3.67316185,143.24,143.23,0.02]
[1750891633582,8.56006494,143.24,143.23,0.02]
[1750891634076,3.67316185,143.24,143.23,0.02]
[1750891635884,4.88672033,143.25,143.23,0.02]
[1750891635885,4.88622085,143.26,143.23,0.02]
[1750891636088,3.67316185,143.24,143.23,0.02]
[1750891644095,4.88637445,143.26,143.23,0.02]
[1750891644277,3.67316185,143.24,143.23,0.02]
[1750891644679,3.67316185,143.25,143.23,0.02]
[1750891647171,3.67316185,143.26,143.23,0.02]
[1750891648593,6.06,143.27,143.23,22.34281071]
[1750891649982,6.06,143.27,143.25,18.64964886]
[1750891650391,6.06,143.27,143.23,22.34281071]
[1750891650595,6.06,143.27,143.25,18.64964886]
[1750891651595,9.73316185,143.27,143.25,18.64964886]
[1750891652594,8.89355583,143.26,143.23,0.02]
[1750891652894,3.67316185,143.24,143.23,0.02]
[1750891657704,8.56006494,143.24,143.23,0.02]
[1750891658203,13.78158832,143.24,143.23,0.02]
[1750891658380,8.56006494,143.24,143.23,0.02]
[1750891658889,4.88690309,143.24,143.23,0.02]
[1750891659090,8.56006494,143.24,143.23,0.02]
[1750891661192,13.78234139,143.24,143.23,0.02]
[1750891661391,8.56006494,143.24,143.23,0.02]
[1750891661590,13.78234139,143.24,143.23,0.02]
[1750891661886,8.56006494,143.24,143.23,0.02]
[1750891662094,10.10917954,143.24,143.23,0.02]
[1750891662399,13.78234139,143.24,143.23,0.02]
[1750891663303,8.56006494,143.24,143.23,0.02]
[1750891663504,13.78234139,143.24,143.23,0.02]
[1750891663686,8.56006494,143.24,143.23,0.02]
[1750891663886,8.8954383,143.24,143.23,0.02]
[1750891664106,3.67316185,143.24,143.23,0.02]
[1750891664984,8.56006494,143.24,143.23,0.02]
[1750891666187,5.22247167,143.25,143.23,0.02]
[1750891666404,3.67316185,143.25,143.23,0.02]
[1750891667608,3.67316185,143.24,143.23,0.02]
[1750891670704,3.67316185,143.25,143.23,0.02]
[1750891671104,3.67316185,143.24,143.23,0.02]
[1750891671404,3.67316185,143.25,143.23,0.02]
[1750891678615,146.15912941,143.26,143.23,0.02]
[1750891679108,3.67316185,143.25,143.23,0.02]
[1750891680412,146.15912941,143.26,143.23,7.00177756]
[1750891680592,3.67316185,143.26,143.23,7.00177756]
[1750891682488,4.8863293,143.26,143.23,0.02]
[1750891682688,3.67316185,143.24,143.23,0.02]
[1750891683104,5.22141689,143.25,143.23,0.02]
[1750891683316,3.67316185,143.24,143.23,0.02]
[1750891684505,4.8863293,143.26,143.23,0.02]
[1750891684709,3.67316185,143.25,143.23,0.02]
[1750891685709,44.27394128,143.28,143.23,0.02]
[1750891685710,5.22097104,143.27,143.23,0.02]
[1750891685914,32.06,143.28,143.23,0.02]
[1750891685915,6.06,143.28,143.23,0.02]
[1750891686215,3.67316185,143.27,143.23,0.02]
[1750891686602,3.67316185,143.27,143.24,18.64964886]
[1750891687909,3.67316185,143.27,143.24,25.63047657]
[1750891688313,6.06,143.28,143.24,29.30363842]
[1750891689593,3.67316185,143.31,143.28,18.64964886]
[1750891689800,5.21659541,143.32,143.28,18.64964886]
[1750891690001,3.67316185,143.31,143.28,18.64964886]
[1750891690708,5.21408084,143.32,143.29,6.97885407]
[1750891690913,142.48596756,143.33,143.3,18.64964886]
[1750891691106,146.15912941,143.33,143.3,18.64964886]
[1750891692220,146.15912941,143.33,143.3,25.62771772]
[1750891694017,146.15912941,143.33,143.23,0.02]
[1750891694018,26.0,143.29,143.23,0.02]
[1750891694219,5.74276047,143.24,143.23,0.02]
[1750891696103,10.62966356,143.24,143.23,0.02]
[1750891704421,16.66966356,143.24,143.23,0.02]
[1750891706528,0.42648471,143.19,143.17,0.02]
[1750891706729,26.0,143.17,143.1,18.64964886]
[1750891706931,5.74276047,143.14,143.09,30.0]
[1750891707320,0.42648471,143.16,143.09,5.74276047]
[1750891707520,5.74276047,143.14,143.09,5.74276047]
[1750891708432,5.74276047,143.14,143.09,18.64964886]
[1750891708627,5.74276047,143.14,143.09,24.39240933]
[1750891708813,5.74276047,143.14,143.09,23.39240933]
[1750891709231,4.8900456,143.15,143.08,8.64526769]
[1750891709431,5.74276047,143.14,143.09,5.74276047]
[1750891710113,5.74276047,143.15,143.1,5.74276047]
[1750891710514,5.74276047,143.15,143.1,12.73040618]
[1750891712637,30.88943566,143.17,143.13,18.64964886]
[1750891712638,5.74276047,143.17,143.13,18.64964886]
[1750891713141,5.74276047,143.14,143.05,1.4795873]
[1750891713346,5.74276047,143.06,143.05,1.4795873]
[1750891714515,4.8923679,143.08,143.05,1.4795873]
[1750891714840,5.74276047,143.06,143.05,1.4795873]
[1750891715139,26.0,143.09,143.05,1.4795873]
[1750891715342,5.74276047,143.07,143.05,1.4795873]
[1750891716330,4.89241185,143.08,143.05,1.4795873]
[1750891716331,5.74276047,143.06,143.05,1.4795873]
[1750891717932,4.89305186,143.06,143.05,1.4795873]
[1750891718131,10.63581233,143.06,143.05,1.4795873]
[1750891718640,5.74276047,143.06,143.05,1.4795873]
[1750891719239,10.63581233,143.06,143.05,1.4795873]
[1750891719451,26.0,143.03,143.0,21.0]
[1750891719661,0.42648471,143.01,143.0,21.0]
[1750891719831,61.89365664,143.01,143.0,21.0]
[1750891720032,37.50124731,143.01,143.0,21.0]
[1750891720222,43.24400778,143.01,143.0,21.0]
[1750891720719,17.24400778,143.01,143.0,21.0]
[1750891721324,4.8947626,143.01,143.0,21.0]
[1750891722651,36.63722265,143.02,143.0,21.0]
[1750891722832,5.74276047,143.01,143.0,21.0]
[1750891724053,31.74276047,143.02,143.0,21.0]
[1750891724237,10.6371873,143.02,143.0,21.0]
[1750891725545,18.64149309,143.09,143.0,21.0]
[1750891725776,10.63512837,143.08,143.03,5.74276047]
[1750891725931,36.63512837,143.08,143.03,5.74276047]